Cogmind - Beta 11.1 @@@ ROGUE MODE // 2022.10.24 @ 13:17:47 Player: ILikeMonsters1890 Result: Destroyed by as-48472 with Assembled Blade Performance ------------- Evolutions (1) 500 Regions Visited (3) 600 Robots Destroyed (24) 120 Value Destroyed (370) 370 Prototype IDs (5) 100 Alien Tech Used (0) 0 Bonus (0) 0 TOTAL SCORE: 1690 Bonus ------- None Cogmind --------- Core Integrity 0/400 Matter 300/300 Energy 100/100 System Corruption 4% Temperature Cool (44) Movement Core (150) Ox2 Location -9/Mines Parts ------- > --- POWER (1) -------- (None) > --- PROPULSION (3) --- (None) > --- UTILITY (3) ------ Small Storage Unit Signal Interpreter > --- WEAPON (2) ------- Maul > --- INVENTORY (8) ---- Light Ion Engine Light Ion Engine Wheel Hover Unit Hover Unit Medium Armor Plating Mini Grenade Launcher Peak State ------------ > --- POWER ------------ Ion Engine > --- PROPULSION ------- Wheel Wheel Wheel > --- UTILITY ---------- Small Storage Unit Signal Interpreter Seismic Detector > --- WEAPON ----------- Advanced Beam Cannon Improved Light Cannon > --- INVENTORY -------- Light Ion Engine Light Ion Engine Wheel Wheel Wheel Medium Armor Plating Assault Rifle Mini Grenade Launcher [Rating: 13] Favorites ----------- Power Ion Engine Engine Ion Engine Propulsion Wheel Wheel Wheel Utility Small Storage Unit Device Seismic Detector Storage Small Storage Unit Processor Signal Interpreter Weapon Assault Rifle Energy Gun Medium Laser Energy Cannon Advanced Beam Cannon Ballistic Gun Assault Rifle Ballistic Cannon Improved Light Cannon Launcher Mini Grenade Launcher Impact Weapon Maul Build | -11 -10 -9 -9 ------- Run | Scr Mat Mat Min Slots Evolved 2 | . . 2 . Power . | . . . . Propulsion 1 | . . 1 . Utility 1 | . . 1 . Weapon . | . . . . Parts Attached 19 | 8 . 10 1 Power 1 | 1 . . . Engine 1 | 1 . . . Core . | . . . . Reactor . | . . . . Propulsion 7 | 3 . 3 1 Treads . | . . . . Leg . | . . . . Wheel 7 | 3 . 3 1 Hover . | . . . . Flight . | . . . . Utility 3 | 2 . 1 . Device 1 | 1 . . . Storage 1 | 1 . . . Processor 1 | . . 1 . Hackware . | . . . . Protection . | . . . . Artifact . | . . . . Weapon 8 | 2 . 6 . Energy Gun 1 | 1 . . . Energy Cannon 1 | . . 1 . Ballistic Gun 1 | 1 . . . Ballistic Cannon 1 | . . 1 . Launcher 1 | . . 1 . Special Weapon . | . . . . Impact Weapon 3 | . . 3 . Slashing Weapon . | . . . . Piercing Weapon . | . . . . Special Melee Weapon . | . . . . Unidentified Prototypes 1 | . . 1 . Parts Lost 8 | . . 1 7 Power 1 | . . . 1 Propulsion 4 | . . . 4 Utility 1 | . . . 1 Weapon 2 | . . 1 1 Highest Loss Streak 7 | . . 1 7 To Critical Strikes . | . . . . Average Slot Usage (%) 99 | . 100 100 88 Engine 11 | . 14 11 7 Wheel 31 | . 28 33 25 Device 11 | . 14 11 11 Storage 11 | . 14 11 11 Processor 8 | . . 11 11 Energy Gun 4 | . 14 . . Energy Cannon 4 | . . 6 . Ballistic Gun 4 | . 14 1 . Ballistic Cannon 4 | . . 7 . Impact Weapon 5 | . . 6 22 Naked Turns . | . . . . Heaviest Build 19 | 15 15 19 17 Greatest Support 30 | 26 20 30 30 Greatest Overweight (x) . | . . . . Average Overweight (x) . | . . . . Largest Inventory Capacity 8 | 8 8 8 8 Average Capacity 7 | 7 8 8 8 Most Carried 8 | 8 8 8 8 Average Carried 7 | 4 8 7 7 Final Capacity 8 | 8 8 8 8 Final Carried 8 | 8 8 8 7 Class Distribution -------------------- 100% | Mutant Dominant Class ---------------- Mutant | -10/Materials Mutant | -9/Materials Mutant | -9/Mines Resources | -11 -10 -9 -9 ----------- Run | Scr Mat Mat Min Matter Collected 516 | 307 27 182 . Remotely . | . . . . Salvage Created 682 | 179 102 367 34 Parts 44 | 20 8 16 . Haulers Intercepted 2 | . . 2 . Recyclers Shooed 1 | . . 1 . Parts Field Recycled . | . . . . Retrieved Matter . | . . . . Parts Self-Destructed . | . . . . Prevented . | . . . . Kills | -11 -10 -9 -9 ------- Run | Scr Mat Mat Min Combat Hostiles Destroyed 14 | . 2 8 4 Melee 4 | . . . 4 Guns 2 | . 2 . . Cannons 3 | . . 3 . AOE 4 | . . 4 . Classes Destroyed 9 | 3 2 3 1 Worker 1 | 1 . . . Tunneler 5 | 5 . . . Hauler 2 | . . 2 . Recycler 3 | 1 . 2 . Operator 1 | . . 1 . Watcher 2 | . 1 1 . Swarmer 4 | . . 4 . Grunt 6 | . 2 4 . Assembled 4 | . . . 4 Best Kill Streak 7 | 3 3 7 4 Combat Bots Only 5 | . 2 5 4 Max Kills in Single Turn 2 | 1 1 2 1 Gunslinging . | . . . . Exploded 2 | . . 2 . Melee 1 | . . . 1 Uniques/NPCs Destroyed . | . . . . Combat | -11 -10 -9 -9 -------- Run | Scr Mat Mat Min Damage Taken 1043 | . 3 131 909 Core 434 | . . 44 390 Absorbed by Shields . | . . . . Core Remaining (%) 100 | 100 100 . . Volleys Fired 33 | 9 9 15 . Largest 2 | 2 2 2 . Hottest 107 | 70 70 107 . Shots Fired 64 | 18 18 28 . Gun 36 | 18 18 . . Cannon 26 | . . 26 . Launcher 2 | . . 2 . Special . | . . . . Kinetic 31 | 9 9 13 . Thermal 31 | 9 9 13 . Explosive 2 | . . 2 . Electromagnetic . | . . . . Robot Hit Streak 11 | 9 11 5 . Robot Miss Streak 5 | 2 5 2 . Penetration Max . | . . . . Secondary Targets . | . . . . Shots Hit Robots 49 | 12 10 21 6 Core Hits 26 | 8 5 11 2 Critical Kills 1 | . . . 1 Critical Parts Destroyed 3 | . . 2 1 Critical Strikes 6 | 1 1 2 2 Burn 2 | 1 1 . . Smash 4 | . . 2 2 Melee Attacks 13 | . . 6 7 Impact 13 | . . 6 7 Slashing . | . . . . Piercing . | . . . . Sneak Attacks 2 | . . 2 . Combat Hostiles . | . . . . Follow-up Attacks . | . . . . Damage Inflicted 1568 | 179 136 962 291 Guns 308 | 179 129 . . Cannons 284 | . . 284 . Explosions 280 | . . 280 . Melee 689 | . . 398 291 Ramming 7 | . 7 . . Kinetic 235 | 76 80 79 . Thermal 357 | 103 49 205 . Explosive 280 | . . 280 . Electromagnetic . | . . . . Impact 689 | . . 398 291 Slashing . | . . . . Piercing . | . . . . Highest Corruption 4 | . 1 . 4 Average Corruption 1 | . 1 . 4 Corruption Purged . | . . . . Corruption Blocked . | . . . . Overload Shots . | . . . . Overflow Damage 308 | . . 218 90 Projectiles 1 | . . 1 . Explosions 21 | . . 21 . Melee 286 | . . 196 90 Knockbacks 6 | . . 5 1 Impact 6 | . . 5 1 Kinetic . | . . . . Secondary . | . . . . Self-Inflicted Damage 100 | . 3 97 . Shots 2 | . . 2 . Rammed 1 | . 1 . . Targets Rammed 1 | . 1 . . Kicked . | . . . . Crushed . | . . . . Highest Temperature 108 | 18 38 108 53 Average Temperature 22 | 8 12 34 31 Received Heat Transfer 286 | . . 6 280 Siege Activations . | . . . . Robots Corrupted . | . . . . Combat Hostiles . | . . . . Parts Fried 7 | . . 7 . Impact Corruptions 9 | . . 6 3 Robots Melted . | . . . . Combat Hostiles . | . . . . Parts Melted . | . . . . Heat Transferred 962 | 370 222 370 . Parts Sabotaged . | . . . . Parts Stolen . | . . . . Parts Stripped . | . . . . Power Chain Reactions . | . . . . Missiles Intercepted . | . . . . Alert | -11 -10 -9 -9 ------- Run | Scr Mat Mat Min Peak Influence 389 | 35 94 389 81 Initial 81 | . 22 39 81 Average 76 | 15 55 115 63 Maximum Alert Level 1 | . . 1 . Low Security (%) 91 | 100 100 84 100 Level 1 8 | . . 15 . Level 2 . | . . . . Level 3 . | . . . . Level 4 . | . . . . Level 5 . | . . . . High Security . | . . . . Max Security . | . . . . Squads Dispatched 2 | . . 2 . Investigation . | . . . . Extermination . | . . . . Reinforcement 2 | . . 2 . Assault . | . . . . Garrison . | . . . . Intercept . | . . . . Searches Triggered . | . . . . Construction Impeded . | . . . . Haulers Reinforced . | . . . . Active Scanning Responses . | . . . . Cargo Convoy Interrupts . | . . . . Stealth | -11 -10 -9 -9 --------- Run | Scr Mat Mat Min Distress Signals 3 | . . 3 . Communications Jammed . | . . . . Distress Signals . | . . . . Times Spotted 42 | . 5 17 20 Peak Tracking Total 20 | . 2 5 20 Tactical Retreats 1 | . . 1 . Traps | -11 -10 -9 -9 ------- Run | Scr Mat Mat Min Traps Triggered . | . . . . Indirectly . | . . . . Trap Hack Attempts . | . . . . Triggered . | . . . . Disarmed . | . . . . Reprogrammed . | . . . . Reused . | . . . . Traps Extracted . | . . . . Installed . | . . . . Triggered . | . . . . Machines | -11 -10 -9 -9 ---------- Run | Scr Mat Mat Min Machines Disabled 2 | . . 2 . Max in Single Turn 1 | . . 1 . Machines Sabotaged . | . . . . Garrisons Compromised . | . . . . Overloaded Fab Kills . | . . . . Hacking | -11 -10 -9 -9 --------- Run | Scr Mat Mat Min Machines Accessed 4 | . 2 2 . Terminals 4 | . 2 2 . Fabricators . | . . . . Repair Stations . | . . . . Recycling Units . | . . . . Scanalyzers . | . . . . Garrison Access . | . . . . Total Hacks 13 | . 5 8 . Successful 5 | . 2 3 . Failed 8 | . 3 5 . Catastrophic 3 | . 2 1 . Database Lockouts . | . . . . Manual 5 | . 1 4 . Terminals 13 | . 5 8 . Fabricators . | . . . . Repair Stations . | . . . . Recycling Units . | . . . . Scanalyzers . | . . . . Garrison Access . | . . . . Terminal Hacks 5 | . 2 3 . Prototype ID Bank 2 | . . 2 . Zone Layout 3 | . 2 1 . Fabricator Hacks . | . . . . Repair Station Hacks . | . . . . Recycling Unit Hacks . | . . . . Scanalyzer . | . . . . Garrison Access Hacks . | . . . . Unauthorized Hacks . | . . . . Terminals . | . . . . Fabricators . | . . . . Repair Stations . | . . . . Recycling Units . | . . . . Scanalyzers . | . . . . Garrison Access . | . . . . Data Cores Recovered . | . . . . Used . | . . . . Hacking Detections 4 | . 2 2 . Full Trace Events . | . . . . Feedback Events . | . . . . Feedback Blocked . | . . . . Robot Schematics Acquired . | . . . . Robots Built . | . . . . Authchips . | . . . . Time . | . . . . Total Robot Build Rating . | . . . . Part Schematics Acquired . | . . . . Parts Built . | . . . . Authchips . | . . . . Time . | . . . . Total Part Build Rating . | . . . . Parts Repaired . | . . . . Time . | . . . . Parts Recycled . | . . . . Recycled Matter . | . . . . Retrieved Matter . | . . . . Retrieved Components . | . . . . Parts Scanalyzed . | . . . . Part Schematics Acquired . | . . . . Parts Damaged . | . . . . Bothacking | -11 -10 -9 -9 ------------ Run | Scr Mat Mat Min Used RIF Installer . | . . . . Robots Hacked . | . . . . Non-combat . | . . . . Combat . | . . . . Robot Hacks Applied . | . . . . Relay Couplers Released . | . . . . Fabnet Peak Effective % . | . . . . Robots Rewired . | . . . . Allies Hacked . | . . . . Hacks Repelled . | . . . . Allies | -11 -10 -9 -9 -------- Run | Scr Mat Mat Min Total Allies . | . . . . Largest Group . | . . . . Highest-Rated Group . | . . . . Highest-Rated Ally . | . . . . Total Orders . | . . . . Ally Attacks . | . . . . Total Damage . | . . . . Kills . | . . . . Allies Corrupted . | . . . . Allies Melted . | . . . . Intel | -11 -10 -9 -9 ------- Run | Scr Mat Mat Min Robot Analysis Total . | . . . . Derelict Logs Recovered . | . . . . Drone Launches . | . . . . Drone Recoveries . | . . . . Exploration | -11 -10 -9 -9 ------------- Run | Scr Mat Mat Min Turns Passed 833 | 205 171 430 27 Spaces Moved 586 | 176 155 247 8 Core 13 | 13 . . . Treads . | . . . . Legs . | . . . . Wheels 573 | 163 155 247 8 Hover . | . . . . Flight . | . . . . Fastest Speed 50 | 50 80 80 80 Average Speed 80 | 81 80 80 80 Slowest Speed 90 | 90 80 80 80 Overloaded Moves . | . . . . Propulsion Burnouts . | . . . . Robots Hopped . | . . . . Cave-ins Triggered . | . . . . Exploration Rate (%) 15 | 5 29 21 6 Regions Visited 3 Branch Regions 1 Pre-discovered Areas . | . . . . Known Exits Taken 1 | . . 1 . Unknown Exits Taken 2 | 1 1 . . Scrap Searched . | . . . . Spaces Dug . | . . . . Terrain Destroyed 16 | . . 16 . Melee . | . . . . Projectile 1 | . . 1 . AOE 15 | . . 15 . Terrain Rammed . | . . . . Walls Destroyed . | . . . . Machines Disabled . | . . . . Actions | -11 -10 -9 -9 --------- Run | Scr Mat Mat Min Total 862 | 224 184 438 16 Wait 168 | 7 18 143 . Move 583 | 175 154 246 8 Hop . | . . . . Pick Up 31 | 20 1 10 . Fast Attach . | . . . . Attach 11 | 7 . 3 1 Detach . | . . . . Swap 9 | 1 . 8 . Drop 13 | 5 1 7 . Fire 33 | 9 9 15 . Melee 13 | . . 6 7 Ram 1 | . 1 . . Kick . | . . . . Crush . | . . . . Escape Stasis . | . . . . Rewire . | . . . . Trap . | . . . . Miscellaneous . | . . . . Route ------- -11/Scrapyard -10/Materials -9/Materials -9/Mines History --------- Turn | Location | Event 2 | -11/Scrapyard | Met Revision 17 8 | -11/Scrapyard | Discovered new exit (range 16) 206 | -11/Scrapyard | Entered Materials 312 | -10/Materials | Build established: Mutant 351 | -10/Materials | Discovered new exit (range 15) 377 | -10/Materials | Entered another Materials area 377 | -9/Materials | Evolved 2 slots: Propulsion x1, Utility x1 792 | -9/Materials | Discovered new exit (range 17) 806 | -9/Materials | Identified exit to Mines 807 | -9/Materials | Entered Mines 808 | -9/Mines | Assembled infested the area 813 | -9/Mines | Assisted by a Guerilla fighting off Assembled 827 | -9/Mines | Core integrity fell below 50% 833 | -9/Mines | Core integrity fell below 20% 834 | -9/Mines | Destroyed by as-48472 with Assembled Blade Last Messages --------------- 00824_ Wheel destroyed. 00826_ Critical hit (Burn: +80). 00826_ K-01 Serf collects debris. 00827_ as-52240 suffers critical hit (Smash). 00827_ as-52240 destroyed. 00827_ as-44025 sneak attacks. 00827_ K-01 Serf destroyed. 00828_ Wheel destroyed. 00830_ Destroyed Asb. Hover Unit. 00830_ as-54503 system corrupted by crushing effect. 00830_ as-54503 knocked back. 00830_ Maul destroyed. 00831_ Seismic Detector destroyed. 00831_ System corrupted by crushing effect (+4). 00831_ Critical hit (Burn: +80). 00831_ Wheel destroyed. 00833_ as-67591 suffers critical hit (Smash). 00833_ Destroyed Asb. Maul. 00833_ as-67591 system corrupted by crushing effect. 00833_ as-67591 destroyed. Map ----- +----------------------------------------------------+ | | | | | | | ?????????????????????????????? | | ?????????????????????????????? | | ?????????????????????????????? | | ?????????????????????????????? | | ?????????????????????????????? | | ?????????????????????????????? | | ?????????????????????????????? | | ?????????????????????????????? | | ?????????????????????????????? | | ???? ????????????????????????? | | ????? ??????????????????????? | | ????? ??????????????????????? | | ????? ?????????????????????? | | ????? ?????????????????????? | | ?????# ?????????????????????? | | ?????# #?????????????????????? | | ?????# #?????????????????????? | | ??#### ######????????????????? | | ??# a a #????????????????? | | ??# " " " " #????????????????? | | ??# "" a "" #????????????????? | | ??# """a"""a#????????????????? | | ??# a@aa %! #????????????????? | | ??#aaaaaa= #????????????????? | | ??# a a= #????????????????? | | ??# % #????????????????? | | ??# #????????????????? | | ??# ;#???????????????? | | ??# ##???????????????? | | ??###########????????????????? | | ?????????????????????????????? | | ?????????????????????????????? | | ?????????????????????????????? | | ?????????????????????????????? | | ?????????????????????????????? | | ?????????????????????????????? | | ?????????????????????????????? | | ?????????????????????????????? | | ?????????????????????????????? | | ?????????????????????????????? | | ?????????????????????????????? | | ?????????????????????????????? | | ?????????????????????????????? | | ?????????????????????????????? | | ?????????????????????????????? | | ?????????????????????????????? | | ?????????????????????????????? | +----------------------------------------------------+ Best States ------------- Heat Dissipation 28 Energy Generation 10 Energy Capacity 250 Matter Stores 300 Matter Capacity 300 Sight Range 16 Terrain Scan Density 10 Evasion (%) 50 Item Schematics ----------------- None Robot Schematics ------------------ None Fabricated ------------ Nothing Alien Tech Used ----------------- None Achievements -------------- None Challenges ------------ None Game ------ Seed RestorationDiametricMantle Manual? 0 Play Time 00:13:57 Cumulative 79.1 hours Start 2022.10.24 @ 13:00:08 End 2022.10.24 @ 13:17:47 Sessions 1 Manual Loads 0 Difficulty Rogue Special Mode None Game No. 88 Rogue 88 Adventurer 0 Explorer 0 Win Type - Total 0 Types 0/0/0/0/0/0/0/0/0 Lore% 56 Gallery% 45 Achievement% 39 Wizard Run 0 Options --------- ASCII 0 Keyboard 0 Movement Numpad Keybinds 0 Fullscreen 2 Font 18/SmallcapsGlow Map View 76x50 Tactical HUD 1 Map Filters NONE Filters NONE Steam 1 RUN: 839b1689-b47c-42a0-8e2e-7de24e6637d8